bitfinex/quotes_ETHUSD_20250328
["timestamp","ask_amount","ask_price","bid_price","bid_amount"]
[1743193102953,5.30356,1885.6,1885.2,10.60866]
[1743193103157,5.30356,1885.6,1885.3,5.30414]
[1743193103358,6.11418,1885.7,1885.3,5.30414]
[1743193103545,11.41749,1885.7,1885.3,5.30414]
[1743193103746,6.11418,1885.7,1885.3,5.30414]
[1743193103961,3.81080557,1885.6,1885.1,0.8181]
[1743193104265,6.05527,1885.4,1885.0,5.30501]
[1743193104630,9.05457,1885.6,1885.1,0.7734]
[1743193104834,9.05457,1885.6,1885.2,5.30437]
[1743193105068,9.05457,1885.6,1885.1,6.07791]
[1743193105376,9.05457,1885.6,1885.1,6.685701]
[1743193105579,10.60759,1885.5,1885.1,6.685701]
[1743193105766,5.30376,1885.5,1885.1,6.685701]
[1743193105972,10.60758,1885.5,1885.1,6.685701]
[1743193106160,5.30376,1885.5,1885.1,6.685701]
[1743193107494,18.16891557,1885.6,1885.2,5.30433]
[1743193107791,14.35813,1885.6,1885.2,5.30433]
[1743193108189,5.30365,1885.5,1885.2,5.30433]
[1743193108556,5.30365,1885.5,1885.1,6.685701]
[1743193109279,5.30365,1885.5,1885.1,11.990311]
[1743193109592,14.35819,1885.6,1885.2,5.30435]
[1743193109882,5.30366,1885.5,1885.2,5.30435]
[1743193111802,5.30366,1885.5,1885.1,6.07791]
[1743193112094,5.30401,1885.4,1885.1,0.7734]
[1743193112381,5.30425,1885.3,1884.9,6.08211]
[1743193112888,5.3049,1885.1,1884.7,6.08262]
[1743193113185,9.11570557,1885.1,1884.7,0.7768]
[1743193113410,9.11570557,1885.1,1884.7,11.38834]
[1743193113694,6.13414,1885.3,1884.9,5.30521]
[1743193113860,6.13414,1885.3,1884.9,5.30516]
[1743193114061,11.43852,1885.3,1884.9,5.30516]
[1743193114790,5.30434,1885.3,1884.9,10.61027]
[1743193114961,5.30434,1885.3,1884.9,5.30511]
[1743193115362,8.30403,1885.4,1885.0,6.07659]
[1743193115587,13.60813,1885.4,1885.0,6.07659]
[1743193115787,8.30403,1885.4,1885.0,6.07659]
[1743193115987,13.60813,1885.4,1885.0,6.07659]
[1743193116175,9.11583557,1885.1,1884.7,5.30575]
[1743193116692,5.30452,1885.2,1884.8,5.3056]
[1743193116901,10.60922,1885.2,1884.8,5.3056]
[1743193117664,5.30476,1885.1,1884.8,5.3056]
[1743193118778,5.30476,1885.1,1884.7,10.61146]
[1743193119402,5.30476,1885.1,1884.8,5.30559]
[1743193121407,5.30456,1885.2,1884.8,5.30559]
[1743193122287,10.60922,1885.2,1884.8,5.30559]
[1743193122494,5.30456,1885.2,1884.8,5.30559]
[1743193122809,10.60922,1885.2,1884.8,5.30559]
[1743193122971,5.30456,1885.2,1884.8,10.61105]
[1743193123301,5.30456,1885.2,1884.8,5.30546]
[1743193123602,5.30456,1885.2,1884.7,5.30573]
[1743193123603,6.06597,1885.1,1884.7,5.30573]
[1743193123805,5.30477,1885.1,1884.8,5.30553]
[1743193124701,10.60976,1885.1,1884.7,5.30573]
[1743193124880,5.30505,1885.0,1884.7,5.30573]
[1743193125477,5.30566,1884.8,1884.6,0.8308]
[1743193125677,5.30566,1884.8,1884.4,6.08222]
[1743193125678,5.30572,1884.8,1884.4,6.08222]
[1743193125880,5.30598,1884.7,1884.4,0.7755]
[1743193126086,5.30572,1884.8,1884.4,6.08222]
[1743193126908,10.61152,1884.8,1884.4,6.08222]
[1743193127894,5.30572,1884.8,1884.4,6.08222]
[1743193128095,5.30572,1884.8,1884.4,11.38876]
[1743193128572,5.30476,1885.1,1884.7,5.30564]
[1743193128777,5.30476,1885.1,1884.7,11.43451]
[1743193129409,0.8321,1885.2,1884.7,0.8231]
[1743193129579,5.3042,1885.3,1884.9,5.30516]
[1743193129781,5.3042,1885.3,1885.0,0.8231]
[1743193129980,5.3042,1885.3,1885.1,0.14827803]
[1743193130179,6.67478333,1885.5,1885.1,5.30465]
[1743193130514,1.91482523,1885.8,1885.4,0.8223]
[1743193130714,1.08752523,1885.8,1885.5,5.30352]
[1743193131102,1.08752523,1885.8,1885.6,0.14827803]
[1743193131497,5.30252,1885.9,1885.6,0.14827803]
[1743193131688,11.136192,1885.8,1885.6,0.14827803]
[1743193131886,9.11393557,1885.7,1885.4,0.8223]
[1743193132133,9.11393557,1885.7,1885.1,5.30451]
[1743193132134,5.30384,1885.5,1885.1,5.30473]
[1743193132495,10.60769,1885.5,1885.1,5.30473]
[1743193132679,5.30384,1885.5,1885.1,5.30473]
[1743193133091,10.60769,1885.5,1885.1,5.30473]
[1743193133291,10.60764,1885.5,1885.1,5.30473]
[1743193133493,0.7565,1885.7,1885.2,5.30434]
[1743193133494,9.87052557,1885.7,1885.2,5.30434]
[1743193133694,9.87052557,1885.7,1885.3,5.30418]
[1743193133984,5.30322,1885.7,1885.3,11.38263]
[1743193134184,10.90883,1885.8,1885.4,5.30385]
[1743193134413,18.17263557,1885.9,1885.4,5.30366]
[1743193134624,4.56730557,1885.9,1885.6,5.30331]
[1743193134827,5.30224,1886.0,1885.6,5.30331]
[1743193134828,9.11304557,1886.0,1885.6,5.30331]
[1743193134995,3.0,1885.9,1885.6,6.07771]
[1743193135492,3.0,1885.9,1885.6,6.07757]
[1743193135684,15.17306557,1886.0,1885.6,6.07757]
[1743193135901,9.87080557,1886.0,1885.6,6.07757]
[1743193136109,9.87080557,1886.0,1885.7,5.30306]
[1743193136636,15.17303557,1886.0,1885.6,6.07757]
[1743193137041,15.17303557,1886.0,1885.6,11.38075]
[1743193137935,11.36223,1886.0,1885.6,11.38075]
[1743193138233,6.06,1886.0,1885.7,5.30304]
[1743193139235,6.06,1886.0,1885.6,6.07759]
[1743193139444,5.30251,1885.9,1885.6,0.7744]
[1743193140436,15.17323557,1886.0,1885.6,6.07774]
[1743193141841,5.30252,1885.9,1885.6,6.07774]
[1743193142340,15.17323557,1886.0,1885.6,6.07774]
[1743193142510,15.17323557,1886.0,1885.6,11.38084]
[1743193142709,15.17307557,1886.0,1885.6,6.07767]
[1743193143044,15.17307557,1886.0,1885.6,11.38082]
[1743193143519,15.17307557,1886.0,1885.6,11.38074]
[1743193144346,15.17307557,1886.0,1885.7,5.30306]
[1743193145548,15.17307557,1886.0,1885.6,6.0777]
[1743193145713,20.47550557,1886.0,1885.6,6.0777]
[1743193145914,5.3026,1885.9,1885.6,0.7744]
[1743193146443,15.17310557,1886.0,1885.6,6.07772]
[1743193146641,15.17310557,1886.0,1885.4,0.7581]
[1743193146642,3.0,1885.9,1885.4,0.7581]
[1743193146944,9.11361557,1885.8,1885.4,5.30389]
[1743193147821,14.41659557,1885.8,1885.4,5.30389]
[1743193148045,9.11361557,1885.8,1885.4,5.30389]
[1743193148543,0.7765,1885.9,1885.5,6.13258]
[1743193148723,11.38189,1885.9,1885.5,6.13258]
[1743193149844,17.44189,1885.9,1885.5,6.13258]
[1743193150045,5.30287,1885.8,1885.5,6.13258]
[1743193150642,5.30287,1885.8,1885.5,0.8291]
[1743193151347,6.8365,1885.9,1885.6,5.30324]
[1743193151649,6.06,1885.9,1885.7,5.30306]
[1743193151860,12.17838,1885.9,1885.5,6.13261]
[1743193152020,5.30288,1885.8,1885.5,0.8291]
[1743193152618,12.17823,1885.9,1885.5,6.13273]
[1743193153638,5.30316,1885.7,1885.5,0.8291]
[1743193153842,5.30316,1885.7,1885.4,6.09485]
[1743193154254,5.30316,1885.7,1885.4,5.30375]
[1743193154432,5.30316,1885.7,1885.3,5.3041]
[1743193154755,5.30316,1885.7,1885.4,5.30387]
[1743193155754,9.11376557,1885.8,1885.4,5.30387]
[1743193155755,9.11376557,1885.8,1885.4,10.60763]
[1743193155949,5.30308,1885.7,1885.4,5.30376]
[1743193156755,5.30288,1885.8,1885.4,5.30376]
[1743193156957,10.60586,1885.8,1885.4,5.30376]
[1743193157952,5.30307,1885.7,1885.4,5.30376]
[1743193158151,5.30288,1885.8,1885.4,5.30376]
[1743193158354,5.30317,1885.7,1885.3,10.60814]
[1743193159063,5.30317,1885.7,1885.4,5.30384]
[1743193159268,5.30282,1885.8,1885.4,5.30384]
[1743193159766,5.30282,1885.8,1885.4,10.60758]
[1743193159943,5.30282,1885.8,1885.4,5.30374]
[1743193161565,11.36282,1885.8,1885.4,5.30374]
[1743193162966,5.3032,1885.7,1885.4,5.30385]
[1743193163346,11.36282,1885.8,1885.4,5.30385]
[1743193163666,16.66581,1885.8,1885.4,5.30385]
[1743193163862,11.36282,1885.8,1885.3,5.30416]
[1743193164067,5.30317,1885.7,1885.3,5.30409]
[1743193164231,11.36282,1885.8,1885.4,5.30379]
[1743193164634,16.6658,1885.8,1885.4,5.30379]
[1743193165436,5.30328,1885.7,1885.3,5.30403]
[1743193166339,5.30328,1885.7,1885.4,5.30387]
[1743193166741,11.3628,1885.8,1885.4,5.30387]
[1743193167465,11.3628,1885.8,1885.4,5.30376]
[1743193167770,11.3628,1885.8,1885.4,10.60749]
[1743193169573,11.3628,1885.8,1885.4,10.60746]
[1743193169874,11.3628,1885.8,1885.4,10.60747]
[1743193170373,11.3628,1885.8,1885.4,5.30373]
[1743193171273,5.30311,1885.7,1885.4,5.30373]
[1743193172183,5.30317,1885.7,1885.4,5.30373]
[1743193173047,0.7935,1885.4,1885.0,0.8188]
[1743193173259,5.30435,1885.3,1885.0,0.8188]
[1743193176904,6.06,1885.4,1885.3,5.30419]
[1743193177066,6.06,1885.7,1885.4,5.30379]
[1743193177266,17.43312,1885.8,1885.4,5.30379]
[1743193177482,5.3031,1885.7,1885.4,5.30379]
[1743193177699,5.3031,1885.7,1885.3,6.07189]
[1743193178078,5.3031,1885.7,1885.3,11.37588]
[1743193178799,5.3031,1885.7,1885.3,6.07169]
[1743193180597,5.3031,1885.7,1885.3,11.3757]
[1743193180805,2.48035443,1886.2,1885.5,0.8182]
[1743193180970,2.48035443,1886.2,1886.1,6.12014]
[1743193181169,2.48035443,1886.2,1886.1,11.17314]
[1743193181604,2.48035443,1886.2,1886.1,6.12014]
[1743193181900,1.39003727,1886.2,1886.1,11.17314]
[1743193182213,1.39003727,1886.2,1886.1,12.820667]
[1743193182400,11.36066,1886.6,1886.2,5.30152]
[1743193182789,6.06,1886.6,1886.2,5.30147]
[1743193183205,6.06,1886.6,1886.3,5.30135]
[1743193184504,6.06,1887.2,1886.5,5.30082]
[1743193184725,6.06,1887.2,1887.0,5.29937]
[1743193184891,6.06,1887.4,1887.1,5.29896]
[1743193185090,1.08758947,1887.5,1887.2,5.2986]
[1743193185289,5.29759,1887.7,1887.2,10.59731]
[1743193185490,0.529759,1887.6,1887.2,5.2986]
[1743193185711,5.827659,1887.6,1887.2,5.2986]
[1743193186011,0.529759,1887.6,1887.3,5.29844]
[1743193186190,0.529759,1887.6,1887.2,5.2986]
[1743193186980,0.05,1887.9,1887.8,5.29717]
[1743193187307,0.05,1887.9,1887.8,11.15087]
[1743193187806,0.05,1887.9,1887.8,6.05387]
[1743193189095,0.05,1887.9,1887.8,0.7567]
[1743193191506,1e-05,1887.9,1887.8,7.24196357]
[1743193192235,1e-05,1887.9,1887.8,10.24196357]
[1743193192902,1e-05,1887.9,1887.8,15.308995]
[1743193194007,0.01376079,1889.0,1888.9,6.05308]
[1743193196512,0.01376079,1889.0,1888.9,6.10601702]
[1743193196718,0.01376079,1889.0,1888.9,6.05308]
[1743193197503,0.01376079,1889.0,1888.6,5.29483]
[1743193197504,5.29408,1888.9,1888.6,0.7751]
[1743193197695,10.58843,1888.9,1888.5,5.2952]
[1743193197883,5.29408,1888.9,1888.5,5.2952]
[1743193198508,5.29408,1888.9,1888.4,10.47935]
[1743193198705,5.29447,1888.8,1888.4,5.29535]
[1743193199187,5.29408,1888.9,1888.4,5.29534]
[1743193199386,10.58843,1888.9,1888.5,5.29518]
[1743193199726,5.2945,1888.8,1888.4,11.716014]
[1743193199907,5.2945,1888.8,1888.4,6.420674]
[1743193200614,5.2945,1888.8,1888.4,5.29533]
[1743193201398,5.2945,1888.8,1888.3,11.24684]
[1743193201586,5.2945,1888.8,1888.4,5.34832885]
[1743193202413,5.2945,1888.8,1888.4,5.29538]
[1743193203115,10.58907,1888.8,1888.4,5.29538]
[1743193203316,5.2945,1888.8,1888.4,5.29538]
[1743193203615,0.83936079,1889.0,1888.4,1.70717184]
[1743193203814,0.01376079,1889.0,1888.7,5.29464]
[1743193204216,0.01376079,1889.0,1888.7,5.29445]
[1743193204418,0.01376079,1889.0,1888.8,5.29425]
[1743193205582,0.01376079,1889.0,1888.8,5.34718868]
[1743193206416,0.01376079,1889.0,1888.8,5.29425]
[1743193206821,0.01376079,1889.0,1888.7,11.25472]
[1743193207025,0.01376079,1889.0,1888.7,12.380192]
[1743193207694,0.01376079,1889.0,1888.7,17.674662]
[1743193207895,0.01376079,1889.0,1888.4,19.79541]
[1743193207896,5.29458,1888.8,1888.5,0.8195]
[1743193208314,5.29458,1888.8,1888.5,6.1147]
[1743193208492,5.29458,1888.8,1888.5,0.8195]
[1743193210021,5.29458,1888.8,1888.4,5.29529]
[1743193210225,3.7879348,1888.8,1888.3,0.8195]
[1743193210430,3.7879348,1888.8,1888.1,5.29611]
[1743193210431,5.29559,1888.4,1888.1,5.159]
[1743193210603,5.29559,1888.4,1888.1,10.50825379]
[1743193210929,5.29559,1888.4,1888.1,10.4553]
[1743193211329,5.29521,1888.5,1888.1,10.4553]
[1743193212707,5.29562,1888.4,1888.1,5.159]
[1743193212906,5.29562,1888.4,1888.1,5.21195723]
[1743193213206,5.29562,1888.4,1888.1,10.50827723]
[1743193213407,5.29562,1888.4,1888.1,10.45532]
[1743193213630,5.29559,1888.4,1888.1,10.45531]
[1743193213836,5.29559,1888.4,1888.1,5.159]
[1743193214036,5.29559,1888.4,1888.1,5.21195722]
[1743193214236,5.29559,1888.4,1888.1,10.50826722]
[1743193214535,5.29559,1888.4,1888.1,10.45531]
[1743193215051,10.59129,1888.4,1888.0,6.11605]
[1743193215229,5.29615,1888.2,1887.8,6.06406]
[1743193215419,5.29615,1888.2,1887.8,6.11702291]
[1743193215808,5.29615,1888.2,1887.8,6.06406]
[1743193216010,5.29615,1888.2,1887.8,11.41402371]
[1743193216211,5.29615,1888.2,1887.8,14.46726237]
[1743193216561,5.29615,1888.2,1887.9,5.29686]
[1743193217404,5.29615,1888.2,1887.8,9.17018237]
[1743193217614,6.09752,1888.5,1887.6,33.3227]
[1743193217615,5.29673,1888.0,1887.6,33.3227]
[1743193217828,5.29647,1888.1,1887.7,5.29731]
[1743193218116,5.2967,1888.0,1887.6,38.46665]
[1743193218437,5.2967,1888.0,1887.6,43.76419]
[1743193218622,5.2967,1888.0,1887.7,2.08099098]
[1743193218820,5.29647,1888.1,1887.7,7.37840098]
[1743193219140,5.29647,1888.1,1887.7,7.43136943]
[1743193220041,5.29666,1888.0,1887.7,2.13395943]
[1743193220244,5.29666,1888.0,1887.7,2.08099098]
[1743193220940,5.29666,1888.0,1887.7,2.13395943]
[1743193221250,5.29647,1888.1,1887.7,7.43127943]
[1743193222133,5.29647,1888.1,1887.7,7.43125943]
[1743193222313,5.29661,1888.0,1887.7,0.05296845]
[1743193222510,5.29647,1888.1,1887.6,38.45865]
[1743193222716,5.29636,1888.1,1887.8,14.5]
[1743193223939,5.29636,1888.1,1887.7,5.29731]
[1743193224142,5.29636,1888.1,1887.8,5.29715]
[1743193224319,5.29636,1888.1,1887.7,5.29731]
[1743193224520,5.29636,1888.1,1887.7,23.69610941]
[1743193224721,5.29636,1888.1,1887.7,23.643141]
[1743193225550,0.7827,1888.1,1887.7,18.345831]
[1743193225845,5.29678,1888.0,1887.7,14.5]
[1743193226046,5.29678,1888.0,1887.6,15.72028]
[1743193226546,6.07904,1888.1,1887.7,5.2973]
[1743193226858,11.37558,1888.1,1887.7,5.2973]
[1743193227435,6.07904,1888.1,1887.7,5.2973]
[1743193228218,6.07904,1888.1,1887.8,5.29715]
[1743193228417,6.07904,1888.1,1887.7,5.2973]
[1743193228619,6.07904,1888.1,1887.7,6.92224038]
[1743193228819,6.07904,1888.1,1887.7,12.21953038]
[1743193229045,6.07904,1888.1,1887.7,6.869272]
[1743193229343,6.07904,1888.1,1887.7,6.92224038]
[1743193230252,6.07904,1888.1,1887.8,3.0]
[1743193230454,5.2973,1887.8,1887.5,0.7953]
[1743193230756,5.2973,1887.8,1887.5,6.09331]
[1743193231425,5.29664,1888.0,1887.6,5.29772]
[1743193231625,6.07904,1888.1,1887.6,6.44210148]
[1743193231850,6.07904,1888.1,1887.7,5.51021064]
[1743193232545,6.07904,1888.1,1887.7,0.21276064]
[1743193232750,6.07904,1888.1,1887.6,6.44210148]
[1743193233047,6.07904,1888.1,1887.8,0.20417859]
[1743193233235,6.07904,1888.1,1887.6,6.44210148]
[1743193233440,6.07904,1888.1,1887.9,0.20417859]
[1743193233642,6.07904,1888.1,1887.6,6.44210148]
[1743193234140,5.29634,1888.1,1887.7,5.50161859]
[1743193234847,9.92364381,1888.3,1887.7,5.50161859]
[1743193235053,5.2954,1888.5,1887.9,5.29663]
[1743193235255,6.1191,1888.5,1888.0,5.29649]
[1743193235454,0.8237,1888.5,1888.0,5.29649]
[1743193235754,6.11905,1888.5,1888.1,0.20417859]
[1743193236133,11.4145,1888.5,1888.1,0.20417859]
[1743193236435,5.2955,1888.4,1888.1,0.20417859]
[1743193237356,6.11905,1888.5,1888.1,0.20417859]
[1743193237357,6.11903,1888.5,1888.1,0.20417859]
[1743193237653,11.41451,1888.5,1888.1,0.20417859]
[1743193238729,5.29507,1888.6,1888.1,6.15638665]
[1743193239052,5.29507,1888.6,1888.2,0.76]
[1743193239435,5.29507,1888.6,1888.3,0.20278976]
[1743193239827,10.59019,1888.6,1888.3,0.20278976]
[1743193240026,5.29507,1888.6,1888.3,0.20278976]
[1743193240857,6.07466,1888.7,1888.3,0.20278976]
[1743193241034,6.07466,1888.7,1888.3,1.35826074]
[1743193241237,6.07466,1888.7,1888.3,6.65391074]
[1743193241422,5.29443,1888.8,1888.4,5.29547]
[1743193241629,6.05588,1888.9,1888.5,0.8282]
[1743193241932,5.30760079,1889.0,1888.6,0.20278976]
[1743193243531,0.01376079,1889.0,1888.6,6.1354884]
[1743193243929,0.01376079,1889.0,1888.6,11.4302084]
[1743193244130,0.01376079,1889.0,1888.7,5.29455]
[1743193244438,0.01376079,1889.0,1888.9,0.7796]
[1743193245160,0.01376079,1889.0,1888.9,0.97786188]
[1743193255057,0.01376079,1889.0,1888.9,6.27194188]
[1743193255253,0.01376079,1889.0,1888.9,0.97786188]
[1743193255583,0.01376079,1889.0,1888.9,0.19826188]
[1743193255750,0.01376079,1889.0,1888.8,5.29422]
[1743193256082,0.01376079,1889.0,1888.9,0.19048472]
[1743193256266,0.01376079,1889.0,1888.8,5.29422]
[1743193256474,0.01376079,1889.0,1888.9,0.19048472]
[1743193256781,0.01376079,1889.0,1888.8,5.29422]
[1743193256984,0.01376079,1889.0,1888.9,0.19048472]
[1743193257446,0.01376079,1889.0,1888.8,5.29422]
[1743193257979,0.01376079,1889.0,1888.9,0.19048472]
[1743193258188,0.01376079,1889.0,1888.8,10.58846]
[1743193258371,0.01376079,1889.0,1888.9,0.19048472]
[1743193258568,0.01376079,1889.0,1888.8,11.724046]
[1743193258775,0.01376079,1889.0,1888.9,0.19048472]
[1743193258980,0.01376079,1889.0,1888.8,11.724046]
[1743193259153,0.01376079,1889.0,1888.9,0.19048472]
[1743193259353,0.01376079,1889.0,1888.8,11.724046]
[1743193259576,0.01376079,1889.0,1888.9,6.31406472]
[1743193264351,3.8179146,1889.0,1888.9,0.19048472]
[1743193264557,4.28220606,1889.0,1888.6,5.29473]
[1743193264892,4.28220606,1889.0,1888.9,0.19012272]
[1743193265192,9.57614606,1889.0,1888.9,0.19048466]
[1743193265356,4.28220606,1889.0,1888.6,5.29487]
[1743193265556,4.28220606,1889.0,1888.9,0.19048466]
[1743193265755,4.28220606,1889.0,1888.6,5.29487]
[1743193265977,4.28220606,1889.0,1888.9,0.19048466]
[1743193266188,4.28220606,1889.0,1888.6,5.29477]
[1743193266367,3.8179146,1889.0,1888.9,0.19048466]
[1743193266565,3.8179146,1889.0,1888.6,5.29477]
[1743193266865,3.8179146,1889.0,1888.9,0.19048466]
[1743193267063,3.8179146,1889.0,1888.6,5.29477]
[1743193267252,9.1117146,1889.0,1888.9,0.19048466]
[1743193267458,9.1117146,1889.0,1888.6,5.29477]
[1743193267658,9.1117146,1889.0,1888.9,0.19048466]
[1743193267888,9.1117146,1889.0,1888.6,5.29477]
[1743193268058,3.8179146,1889.0,1888.9,0.19048466]
[1743193268257,3.8179146,1889.0,1888.7,5.29463]
[1743193268486,3.8179146,1889.0,1888.9,0.19048466]
[1743193268696,3.8179146,1889.0,1888.6,5.29484]
[1743193268866,3.8179146,1889.0,1888.9,0.19048466]
[1743193269359,3.8179146,1889.0,1888.7,5.29445]
[1743193269562,3.8179146,1889.0,1888.9,0.19048466]
[1743193269761,3.8179146,1889.0,1888.7,5.29445]
[1743193269959,3.8179146,1889.0,1888.9,0.19048466]
[1743193270159,3.8179146,1889.0,1888.7,5.29445]
[1743193270359,3.8179146,1889.0,1888.9,0.19048466]
[1743193270581,3.8179146,1889.0,1888.7,5.29445]
[1743193270769,3.8179146,1889.0,1888.9,0.19048466]
[1743193270969,3.8179146,1889.0,1888.6,5.29474]
[1743193271182,3.8179146,1889.0,1888.9,0.19048466]
[1743193271378,3.8179146,1889.0,1888.6,10.5895]
[1743193271581,3.8179146,1889.0,1888.9,0.19048466]
[1743193271785,9.1117146,1889.0,1888.6,5.29474]
[1743193271962,3.8179146,1889.0,1888.9,0.19048466]
[1743193272163,3.8179146,1889.0,1888.7,5.2946]
[1743193272376,0.01376079,1889.0,1888.9,0.19048466]
[1743193272582,0.01376079,1889.0,1888.7,10.58912]
[1743193272783,0.01376079,1889.0,1888.9,0.19048466]
[1743193272983,0.01376079,1889.0,1888.7,5.29452]
[1743193273185,0.01376079,1889.0,1888.9,0.19048466]
[1743193273392,0.01376079,1889.0,1888.7,5.29452]
[1743193273572,0.01376079,1889.0,1888.9,0.19048466]
[1743193273772,0.01376079,1889.0,1888.7,5.29452]
[1743193273973,0.01376079,1889.0,1888.9,0.19048466]
[1743193274173,0.01376079,1889.0,1888.7,5.29452]
[1743193274373,0.01376079,1889.0,1888.9,0.19048466]
[1743193274576,0.01376079,1889.0,1888.7,5.29452]
[1743193274777,0.01376079,1889.0,1888.9,0.19048466]
[1743193274971,0.01376079,1889.0,1888.5,6.10805]
[1743193275172,0.01376079,1889.0,1888.9,5.48456466]
[1743193275372,0.01376079,1889.0,1888.9,6.12572062]
[1743193275577,7.9e-07,1889.0,1888.9,9.31717053]
[1743193277164,7.9e-07,1889.0,1888.9,9.71689761]
[1743193278876,7.9e-07,1889.0,1888.9,9.66395699]
[1743193279072,7.9e-07,1889.0,1888.9,11.66446169]
[1743193279602,7.9e-07,1889.0,1888.9,12.21446169]
[1743193280574,7.9e-07,1889.0,1888.9,16.71346169]
[1743193282211,7.9e-07,1889.0,1888.9,11.66446169]
[1743193282410,7.9e-07,1889.0,1888.9,16.71046169]
[1743193290117,7.9e-07,1889.0,1888.9,17.26046169]
[1743193290989,7.9e-07,1889.8,1889.7,5.29184]
[1743193291190,7.9e-07,1889.8,1889.7,14.774656]
[1743193291545,7.9e-07,1889.8,1889.7,9.90958891]
[1743193291848,7.9e-07,1889.8,1889.7,14.95458891]
[1743193292197,7.9e-07,1889.8,1889.7,11.95458891]
[1743193294300,7.9e-07,1889.8,1889.7,12.74278891]
[1743193296245,7.9e-07,1889.8,1889.7,27.24278891]
[1743193298032,7.9e-07,1889.8,1889.7,12.74278891]
[1743193302231,7.9e-07,1889.8,1889.7,27.24278891]
[1743193304935,7.9e-07,1889.8,1889.7,30.24278891]
[1743193308038,7.9e-07,1889.8,1889.7,15.74278891]
[1743193308237,7.9e-07,1889.8,1889.7,9.90958891]
[1743193308442,7.9e-07,1889.8,1889.7,14.95358891]
[1743193312242,7.9e-07,1889.8,1889.7,14.95258891]
[1743193315540,7.9e-07,1889.8,1889.7,29.45258891]
[1743193318045,7.9e-07,1889.8,1889.7,29.40258891]
[1743193321666,7.9e-07,1889.8,1889.7,30.20588891]
[1743193322257,1.9e-07,1889.9,1889.8,8.29156]
[1743193322429,1.9e-07,1889.9,1889.8,12.14130489]
[1743193322833,1.9e-07,1889.9,1889.8,12.63358569]
[1743193323021,1.9e-07,1889.9,1889.8,12.81050577]
[1743193328167,1.9e-07,1889.9,1889.8,13.61850577]
[1743193329135,1.9e-07,1889.9,1889.8,14.69684873]
[1743193329737,1.9e-07,1889.9,1889.8,14.66590698]
[1743193329934,1.9e-07,1889.9,1889.8,29.16590698]
[1743193331343,1.9e-07,1889.9,1889.8,13.85790698]
[1743193331537,1.9e-07,1889.9,1889.8,10.97181913]
[1743193332437,1.9e-07,1889.9,1889.8,10.47953833]
[1743193337265,1.9e-07,1889.9,1889.8,5.43753833]
[1743193337572,1.9e-07,1889.9,1889.8,10.48053833]
[1743193340643,0.82150019,1889.9,1889.8,10.48053833]
[1743193341673,0.82150019,1889.9,1889.8,5.43753833]
[1743193341972,0.82150019,1889.9,1889.8,0.17692008]
[1743193342176,1.28406559,1889.9,1889.8,0.17692008]
[1743193342353,0.82150019,1889.9,1889.8,0.17692008]
[1743193343867,0.82150019,1889.9,1889.8,0.27692008]
[1743193344673,0.82150019,1889.9,1889.8,5.56848008]
[1743193345553,1.9e-07,1889.9,1889.8,5.62139312]
[1743193346047,1.9e-07,1889.9,1889.8,20.12139312]
[1743193346247,1.9e-07,1889.9,1889.8,22.60480339]
[1743193347877,1.9e-07,1889.9,1889.8,8.10480339]
[1743193348080,4.560254,1889.9,1889.8,0.27692008]
[1743193348746,0.75610019,1889.9,1889.8,0.27692008]
[1743193349080,0.75610019,1889.9,1889.8,5.56848008]
[1743193350867,1.9e-07,1889.9,1889.8,6.65451109]
[1743193351182,1.9e-07,1889.9,1889.8,9.70741943]
[1743193351750,1.9e-07,1889.9,1889.8,24.20741943]
[1743193351961,1.9e-07,1889.9,1889.8,24.15451109]
[1743193357458,1.9e-07,1889.9,1889.8,9.65451109]
[1743193360565,1.9e-07,1889.9,1889.8,6.65451109]
[1743193360764,1.9e-07,1889.9,1889.8,5.56848008]
[1743193360970,0.79050019,1889.9,1889.8,5.56848008]
[1743193361577,0.79050019,1889.9,1889.8,0.27692008]
[1743193361865,0.79050019,1889.9,1889.8,5.56848008]
[1743193369104,1.9e-07,1889.9,1889.8,5.56848008]
[1743193379116,0.82440019,1889.9,1889.8,5.56848008]
[1743193384616,0.82440019,1889.9,1889.8,0.27692008]
[1743193384788,6.11568019,1889.9,1889.8,0.27692008]
[1743193385108,0.82440019,1889.9,1889.8,0.24815742]
[1743193386593,6.11568019,1889.9,1889.8,0.24815742]
[1743193387639,0.82440019,1889.9,1889.8,0.24815742]
[1743193392629,6.11568019,1889.9,1889.8,0.24815742]
[1743193393222,9.919834,1889.9,1889.8,0.24815742]
[1743193393994,9.919834,1889.9,1889.8,0.1]
[1743193394197,9.919834,1889.9,1889.8,0.25068223]
[1743193394424,9.919834,1889.9,1889.8,0.1]
[1743193395816,16.529834,1889.9,1889.8,0.1]
[1743193397109,15.979834,1889.9,1889.8,0.1]
[1743193397434,12.17568019,1889.9,1889.8,0.1]
[1743193397812,12.17568019,1889.9,1889.8,0.25068223]
[1743193398004,12.17568019,1889.9,1889.8,0.1]
[1743193398198,12.17568019,1889.9,1889.8,0.25068223]
[1743193398730,6.88440019,1889.9,1889.8,0.25068223]
[1743193399333,12.17568019,1889.9,1889.8,0.25068223]
[1743193399946,15.979834,1889.9,1889.8,0.25068223]
[1743193402844,12.17568019,1889.9,1889.8,0.25068223]
[1743193410642,6.88440019,1889.9,1889.8,0.25068223]
[1743193410842,6.06000019,1889.9,1889.8,0.25068223]
[1743193414151,15.155434,1889.9,1889.8,0.25068223]
[1743193414350,15.962234,1889.9,1889.8,0.25068223]
[1743193414569,15.962234,1889.9,1889.8,0.1]
[1743193414867,16.512234,1889.9,1889.8,0.25164423]
[1743193415066,16.512234,1889.9,1889.8,0.1]
[1743193415267,16.512234,1889.9,1889.8,0.25164423]
[1743193415419,16.512234,1889.9,1889.8,0.1]
[1743193419558,19.512234,1889.9,1889.8,0.1]
[1743193422648,18.705434,1889.9,1889.8,0.1]
[1743193422851,24.549334,1889.9,1889.8,0.1]
[1743193426553,5.29311,1889.3,1889.0,0.7828]
[1743193426923,5.29311,1889.3,1889.1,0.1428158]
[1743193427725,5.29271,1889.4,1889.1,0.1428158]
[1743193428255,14.38974381,1889.4,1889.1,0.1428158]
[1743193428556,14.79632738,1889.4,1889.1,0.1428158]